bitfinex-derivatives/quotes_ETHF0:USTF0_20250810
["timestamp","ask_amount","ask_price","bid_price","bid_amount"]
[1754819055857,1.5709,4225.7,4225.6,0.9353]
[1754819056354,1.1672,4225.7,4225.6,0.9353]
[1754819056760,1.5709,4225.7,4225.6,0.9353]
[1754819056960,1.5709,4226.2,4226.1,1.4085]
[1754819060863,1.5709,4226.2,4226.1,0.8452]
[1754819061864,1.5709,4226.2,4226.1,1.4085]
[1754819063761,1.1672,4226.2,4226.1,1.2046]
[1754819063965,1.5709,4226.2,4226.1,1.4085]
[1754819065761,1.5709,4226.2,4226.1,0.67]
[1754819065964,0.9379,4226.1,4225.5,3.2078]
[1754819066160,1.5709,4225.6,4225.5,4.61636]
[1754819068061,0.265,4225.6,4225.5,3.68106]
[1754819068263,0.4557,4226.2,4226.1,0.47319]
[1754819068464,1.3059,4226.2,4226.1,1.21169]
[1754819068965,1.5709,4226.2,4225.9,0.8739]
[1754819069164,1.5709,4226.0,4225.9,0.1968]
[1754819069367,0.633,4226.0,4225.8,0.47322]
[1754819069562,1.5709,4225.9,4225.8,0.47322]
[1754819069758,0.47325,4225.6,4225.5,3.2078]
[1754819069958,0.633,4225.6,4225.3,0.47327]
[1754819070162,1.5709,4225.4,4225.3,0.64847]
[1754819070370,1.5709,4225.4,4225.3,1.21177]
[1754819070666,1.5709,4225.4,4225.3,1.40857]
[1754819071069,0.5342,4225.4,4225.3,1.46667]
[1754819072361,1.1184,4225.4,4225.3,1.40857]
[1754819072863,1.3936,4225.4,4225.3,1.40857]
[1754819073463,1.3936,4225.4,4225.3,1.46667]
[1754819074068,1.3936,4225.4,4225.3,1.40857]
[1754819074370,1.5709,4225.4,4225.3,1.40857]
[1754819075974,1.0419,4226.0,4225.9,0.5161]
[1754819076268,1.0419,4226.0,4225.9,1.38971]
[1754819076660,1.576,4226.0,4225.9,1.38971]
[1754819081567,1.576,4226.0,4225.9,0.3646]
[1754819081769,0.6228,4225.8,4225.7,0.66983]
[1754819081967,1.576,4225.8,4225.7,0.66983]
[1754819082168,1.576,4225.8,4225.7,0.47323]
[1754819083068,1.576,4225.8,4225.6,3.68104]
[1754819083372,1.576,4225.7,4225.6,3.68104]
[1754819084875,1.576,4225.7,4225.6,3.2078]
[1754819087271,1.576,4225.7,4225.5,0.47326]
[1754819087470,1.576,4225.6,4225.5,0.47326]
[1754819087874,2.04925,4225.6,4225.4,0.47327]
[1754819088076,1.09605,4225.6,4225.4,0.47327]
[1754819088273,1.3924,4225.5,4225.4,0.66987]
[1754819088469,1.576,4225.5,4225.4,0.66987]
[1754819089671,1.576,4225.5,4225.3,0.47328]
[1754819089876,1.576,4225.4,4225.3,0.66988]
[1754819090076,1.576,4225.4,4225.3,0.87368]
[1754819091773,1.576,4225.4,4225.3,1.13448]
[1754819091972,1.576,4225.4,4225.3,0.2894]
[1754819092273,1.576,4225.1,4225.0,1.19321]
[1754819092786,1.576,4225.1,4225.0,1.38981]
[1754819093778,1.576,4225.1,4225.0,0.66991]
[1754819093975,1.576,4225.1,4225.0,0.87371]
[1754819094178,1.576,4225.1,4225.0,1.13451]
[1754819094479,1.576,4225.1,4225.0,1.38981]
[1754819095077,2.0493,4225.1,4224.9,3.2078]
[1754819095280,1.576,4225.1,4224.9,3.2078]
[1754819095483,1.576,4225.0,4224.9,3.2078]
[1754819097384,1.576,4224.5,4224.4,0.4932]
[1754819098475,0.6228,4224.5,4224.4,0.1966]
[1754819098674,0.6228,4224.5,4224.4,0.4004]
[1754819098978,1.576,4224.5,4224.4,0.4004]
[1754819100785,1.576,4224.5,4224.4,0.5684]
[1754819101080,1.576,4224.5,4224.4,0.6612]
[1754819104484,0.2726,4224.8,4224.7,1.44884]
[1754819104676,0.4451,4225.2,4225.1,0.2611]
[1754819104882,0.4451,4225.2,4225.1,0.9173]
[1754819105283,1.1209,4225.2,4225.1,0.9173]
[1754819105488,1.3761,4225.2,4225.1,0.9173]
[1754819105693,1.5477,4225.2,4225.1,0.9173]
[1754819106387,0.93,4225.1,4224.9,0.66972]
[1754819106583,1.5467,4225.0,4224.9,0.66972]
[1754819107081,1.5467,4225.0,4224.9,0.87332]
[1754819107883,1.5467,4225.0,4224.9,0.47332]
[1754819108287,1.5467,4225.0,4224.9,1.04502]
[1754819108489,1.5467,4225.0,4224.9,1.13752]
[1754819108691,1.5467,4225.0,4224.9,0.6642]
[1754819111988,1.5467,4225.0,4224.9,0.9184]
[1754819112591,1.5467,4225.0,4224.9,1.39172]
[1754819113298,1.5467,4225.0,4224.8,0.47333]
[1754819113494,1.5467,4224.9,4224.8,0.94113]
[1754819113696,1.5467,4224.9,4224.8,1.39173]
[1754819117195,1.2925,4224.9,4224.8,1.39173]
[1754819117500,0.60243973,4225.5,4225.4,0.9184]
[1754819117501,1.21913973,4225.5,4225.4,0.9184]
[1754819117803,0.8929,4225.5,4225.4,0.9184]
[1754819118101,1.5467,4225.5,4225.4,0.9184]
[1754819118695,0.60243973,4226.0,4225.9,0.47321]
[1754819118998,0.2762,4226.0,4225.9,1.44941]
[1754819119591,0.2762,4226.0,4225.9,1.39161]
[1754819119592,1.5467,4226.0,4225.9,1.39161]
[1754819119794,0.6167,4226.0,4225.8,0.47322]
[1754819119992,0.6167,4226.0,4225.4,3.2078]
[1754819119993,1.5467,4225.9,4225.5,0.47326]
[1754819120198,0.93,4225.8,4225.6,0.47325]
[1754819120403,0.6167,4225.7,4225.6,1.19525]
[1754819120606,1.5467,4225.7,4225.6,1.39165]
[1754819121105,0.2762,4225.7,4225.6,1.44945]
[1754819121302,0.5304,4226.0,4225.9,1.44941]
[1754819121806,1.5467,4226.0,4225.9,1.39161]
[1754819122002,1.5467,4226.0,4225.9,1.18801]
[1754819122307,1.5467,4225.6,4225.5,1.39166]
[1754819123001,1.3703,4225.5,4225.4,3.2078]
[1754819123208,1.5467,4225.5,4225.4,3.2078]
[1754819124906,1.5467,4225.5,4225.4,3.4042]
[1754819125710,1.5467,4225.5,4225.4,4.1262]
[1754819126812,1.5467,4225.5,4225.4,3.4042]
[1754819127013,1.5467,4225.5,4225.4,3.2078]
[1754819129216,1.5467,4225.0,4224.9,3.2078]
[1754819131222,1.5467,4225.0,4224.9,3.7804]
[1754819131419,1.5467,4225.0,4224.9,3.8735]
[1754819132119,1.5467,4225.0,4224.9,4.1277]
[1754819135121,0.6758,4225.4,4225.2,0.519]
[1754819135418,1.1064,4225.4,4225.3,1.40027]
[1754819135625,0.7068,4225.4,4225.3,1.40027]
[1754819135820,0.2762,4225.4,4225.3,1.45817]
[1754819136215,0.5384,4225.6,4225.5,0.87345]
[1754819136523,0.77881969,4226.0,4225.9,0.5261]
[1754819136820,1.532,4226.0,4225.9,0.9263]
[1754819139926,1.532,4226.0,4225.9,0.1965]
[1754819141022,0.6047,4226.0,4225.8,0.47322]
[1754819141223,1.532,4225.9,4225.8,0.99932]
[1754819141733,1.532,4225.9,4225.8,1.39952]
[1754819145030,0.60241969,4226.5,4226.4,0.47316]
[1754819145230,0.2782,4226.8,4226.5,0.93124]
[1754819145425,0.2782,4226.8,4226.7,0.9842]
[1754819145827,1.532,4226.8,4226.5,0.47314]
[1754819146025,1.1431,4226.6,4226.5,1.39944]
[1754819146632,1.532,4226.6,4226.5,1.39944]
[1754819147132,1.532,4226.6,4226.5,1.19574]
[1754819147432,1.532,4226.6,4226.5,0.47314]
[1754819148332,0.6047,4226.5,4225.9,3.2078]
[1754819148627,0.47312,4226.7,4225.9,3.2078]
[1754819148628,0.2782,4226.0,4225.9,3.9955]
[1754819148830,0.2782,4226.4,4226.2,0.47318]
[1754819149133,0.73331,4226.9,4226.7,0.5261]
[1754819149134,0.8829,4226.8,4226.7,0.5261]
[1754819149338,1.532,4226.8,4226.7,0.9263]
[1754819149731,0.2782,4226.8,4226.7,0.9842]
[1754819149929,3.2078,4227.1,4227.0,0.5261]
[1754819150237,0.1764,4227.1,4227.0,0.9263]
[1754819150535,0.3889,4227.2,4227.1,0.99918]
[1754819150730,0.4348,4227.4,4227.3,0.47305]
[1754819151033,1.2718,4227.4,4227.3,0.9263]
[1754819151430,1.532,4227.4,4227.3,0.9263]
[1754819151637,1.1431,4227.4,4227.3,0.9263]
[1754819151823,0.2782,4227.4,4227.3,0.9842]
[1754819153837,0.5384,4227.4,4227.3,0.9842]
[1754819154137,1.532,4227.4,4227.3,0.9263]
[1754819154638,1.532,4227.1,4227.0,0.66959]
[1754819155337,1.532,4227.1,4226.9,3.6809]
[1754819155534,1.532,4227.0,4226.9,3.6809]
[1754819156137,1.532,4227.0,4226.9,4.048]
[1754819156332,1.532,4227.0,4226.9,4.6072]
[1754819157238,1.532,4227.0,4226.9,3.2078]
[1754819158437,1.532,4227.0,4226.9,3.4043]
[1754819158633,1.1431,4227.0,4226.9,3.3784]
[1754819158833,0.2782,4227.0,4226.9,4.1341]
[1754819159233,0.4366,4227.4,4227.3,0.99915]
[1754819159539,1.532,4227.4,4227.3,1.39935]
[1754819160838,0.2782,4227.4,4227.3,1.45725]
[1754819161942,1.532,4227.4,4227.3,1.30665]
[1754819162138,1.532,4227.4,4227.3,1.39935]
[1754819162842,0.2602,4228.1,4227.5,0.1965]
[1754819163142,1.07333837,4228.4,4227.9,0.9263]
[1754819163143,1.532,4228.0,4227.9,0.9263]
[1754819163343,1.1431,4228.0,4227.9,0.9263]
[1754819163538,0.4546,4228.0,4227.9,0.9263]
[1754819163743,0.2782,4228.0,4227.9,0.9842]
[1754819164144,0.5384,4228.0,4227.9,0.9263]
[1754819164340,0.9732,4228.0,4227.9,0.9263]
[1754819164644,1.532,4228.0,4227.9,0.9263]
[1754819164941,1.532,4228.0,4227.9,0.6299]
[1754819165533,1.532,4228.0,4227.9,0.9261]
[1754819165839,1.1431,4228.0,4227.9,0.9261]
[1754819166442,1.5587,4228.0,4227.9,0.9261]
[1754819166644,1.5587,4228.0,4227.8,0.473]
[1754819166844,1.5621,4227.8,4227.7,0.47301]
[1754819167041,0.8919,4227.8,4227.7,1.40601]
[1754819167239,1.1465,4227.8,4227.7,1.40601]
[1754819167435,1.5621,4227.8,4227.7,1.40601]
[1754819167643,1.1465,4227.8,4227.7,1.40601]
[1754819168147,1.5621,4228.1,4228.0,1.40598]
[1754819168341,1.5621,4228.1,4228.0,4.61378]
[1754819168942,1.5621,4228.1,4228.0,3.68078]
[1754819169242,1.5621,4228.1,4228.0,3.2078]
[1754819170346,1.5621,4228.1,4228.0,3.6698]
[1754819170847,1.5621,4228.1,4228.0,3.3812]
[1754819171043,1.5621,4228.1,4228.0,3.2078]
[1754819174745,2.03507,4228.1,4228.0,3.2078]
[1754819175047,1.18224,4228.8,4227.6,0.47302]
[1754819175048,0.6066,4227.7,4227.6,0.47302]
[1754819175252,1.5621,4227.7,4227.6,0.47302]
[1754819175749,2.03511,4227.7,4227.5,0.47303]
[1754819175949,1.5621,4227.6,4227.5,0.47303]
[1754819176149,0.6066,4227.4,4227.3,3.68085]
[1754819176352,1.5621,4227.4,4227.3,3.68085]
[1754819176551,1.5621,4227.4,4227.3,3.87695]
[1754819177252,1.5621,4227.4,4227.3,4.61345]
[1754819179353,1.5621,4228.0,4227.9,0.9326]
[1754819179757,0.60162027,4228.2,4228.1,0.3597]
[1754819179952,0.60162027,4228.2,4227.9,0.53069]
[1754819179953,0.4529,4228.7,4228.6,1.40551]
[1754819180247,0.7075,4228.7,4228.6,1.40551]
[1754819180442,1.3934,4228.7,4228.6,1.40551]
[1754819180842,1.1231,4228.7,4228.6,1.40551]
[1754819181042,1.28752027,4229.5,4229.1,0.1734]
[1754819181246,1.28752027,4229.5,4229.1,1.40546]
[1754819181247,0.9778,4229.2,4229.1,1.40546]
[1754819181655,1.5621,4229.2,4229.1,1.40546]
[1754819184044,1.5621,4229.2,4229.1,0.1734]
[1754819184250,0.9555,4229.1,4228.8,0.66898]
[1754819184457,0.6066,4228.9,4228.8,1.20938]
[1754819184654,1.5621,4228.9,4228.8,1.20938]
[1754819184949,1.5621,4228.9,4228.8,1.40548]
[1754819185555,1.5621,4228.8,4228.7,1.1172]
[1754819185751,1.5621,4228.8,4228.7,1.006]
[1754819185958,1.5621,4228.8,4228.7,1.2094]
[1754819186158,0.6066,4228.8,4228.5,3.4039]
[1754819186359,1.5621,4228.7,4228.6,0.47291]
[1754819186756,1.5621,4228.7,4228.6,0.93461]
[1754819186955,1.5621,4228.7,4228.6,1.13801]
[1754819187156,1.5621,4228.7,4228.6,0.9326]
[1754819188453,1.5621,4228.7,4228.6,0.3695]
[1754819189058,1.5621,4228.7,4228.6,0.4617]
[1754819189361,1.5621,4228.7,4228.6,0.9326]
[1754819191062,1.07951,4228.7,4228.5,3.2078]
[1754819191361,1.5621,4228.6,4228.5,3.2078]
[1754819191862,1.5621,4228.6,4228.5,3.4039]
[1754819192765,1.5621,4228.6,4228.5,4.1404]
[1754819194074,0.2696,4228.6,4228.5,4.1981]
[1754819194764,0.5399,4228.6,4228.5,4.1404]
[1754819194958,0.7232,4228.6,4228.5,4.1404]
[1754819195769,0.9778,4228.6,4228.5,4.1404]
[1754819196071,0.9778,4228.6,4228.5,4.61332]
[1754819197363,1.5651,4228.6,4228.5,4.61332]
[1754819200971,1.3962,4228.6,4228.5,4.61332]
[1754819201272,1.5806,4228.6,4228.5,4.61332]
[1754819201772,1.5806,4228.6,4228.5,3.68072]
[1754819201973,1.5806,4228.6,4228.5,3.2078]
[1754819202166,1.6003,4228.0,4227.9,3.2078]
[1754819202367,0.3648,4227.6,4227.5,0.47303]
[1754819202568,1.6003,4227.6,4227.5,0.47303]
[1754819203072,1.6003,4227.6,4227.5,0.67013]
[1754819203269,1.6003,4227.6,4227.5,1.40953]
[1754819204164,0.2788,4227.6,4227.5,1.20543]
[1754819204365,1.6003,4227.6,4227.5,1.40953]
[1754819205265,0.2701,4227.9,4227.5,0.4012]
[1754819205471,0.6328,4228.0,4227.9,1.40949]
[1754819205671,1.6003,4228.0,4227.9,1.40949]
[1754819205975,1.1817,4228.0,4227.9,1.40949]
[1754819206174,0.9973,4228.0,4227.9,1.40949]
[1754819206770,1.1817,4228.0,4227.9,1.40949]
[1754819206971,1.6003,4228.0,4227.9,1.40949]
[1754819215583,1.6003,4228.0,4227.9,0.47299]
[1754819215781,3.2078,4228.3,4228.1,0.47296]
[1754819215985,1.3302,4228.7,4228.6,0.67]
[1754819216177,1.6003,4228.7,4228.6,1.2053]
[1754819216382,1.6003,4228.7,4228.6,0.8426]
[1754819216991,1.6003,4228.7,4228.6,1.4094]
[1754819217286,1.6003,4228.7,4228.6,1.2053]
[1754819217487,1.6003,4228.7,4228.6,0.4729]
[1754819220490,0.60223468,4229.3,4229.1,0.47285]
[1754819220690,1.6003,4229.2,4229.1,0.47285]
[1754819220997,0.6328,4229.2,4229.0,0.47287]
[1754819221291,1.6003,4229.1,4229.0,1.40937]
[1754819224195,1.6003,4229.1,4229.0,0.56617]
[1754819224397,1.6003,4229.1,4229.0,0.47287]
[1754819226694,1.6003,4229.1,4228.9,3.68068]
[1754819226894,0.6328,4229.1,4228.9,3.68068]
[1754819227101,1.5464,4229.0,4228.9,0.47288]
[1754819229200,0.604,4228.5,4228.4,3.68074]
[1754819229501,1.5464,4228.5,4228.4,3.87724]
[1754819230106,1.5464,4228.5,4228.4,4.25984]
[1754819230399,1.5464,4228.5,4228.4,4.60554]
[1754819231600,1.5464,4228.5,4228.4,3.68074]
[1754819232102,1.5464,4228.5,4228.4,3.2078]
[1754819232408,1.5464,4228.5,4228.2,0.47296]
[1754819232704,0.604,4228.3,4228.2,0.47296]
[1754819232898,1.5464,4228.3,4228.2,0.47296]
[1754819234704,1.5464,4228.3,4228.2,1.39776]
[1754819238704,1.5464,4228.3,4228.2,1.19406]
[1754819239107,1.0958,4228.6,4228.5,0.47293]
[1754819239305,1.5464,4228.6,4228.5,1.39773]
[1754819240303,0.2683,4228.6,4228.5,1.39773]
[1754819240603,0.2683,4228.6,4228.5,1.45563]
[1754819242098,0.1743,4229.2,4229.1,0.47286]
[1754819242303,1.5464,4229.2,4229.1,0.47286]
[1754819243106,1.5464,4229.2,4229.1,1.39766]
[1754819245610,0.4426,4229.2,4229.1,1.39766]
[1754819245807,0.4426,4229.2,4229.1,1.45556]
[1754819246204,0.2683,4229.2,4229.1,1.45556]
[1754819246398,1.0006,4229.7,4229.6,0.5246]
[1754819246707,1.5464,4229.7,4229.6,0.9248]
[1754819248007,1.5464,4229.7,4229.6,1.3976]
[1754819249414,0.9424,4229.6,4229.5,3.2078]
[1754819249614,1.5464,4228.9,4228.8,3.4044]
[1754819249910,1.5464,4228.9,4228.8,3.8797]
[1754819250114,1.5464,4228.9,4228.8,4.1327]
[1754819250513,1.5464,4228.9,4228.8,4.60559]
[1754819251312,1.5464,4228.9,4228.8,4.05619]
[1754819251514,1.5464,4228.9,4228.8,4.25989]
[1754819251710,1.5464,4228.9,4228.8,4.60559]
[1754819253615,1.5464,4228.9,4228.8,3.2078]
[1754819255519,1.5464,4228.9,4228.8,3.4046]
[1754819256219,1.5495,4228.9,4228.8,3.5848]
[1754819256817,1.5495,4228.9,4228.8,4.26149]
[1754819257016,1.5495,4228.9,4228.8,4.35419]
[1754819257217,1.5495,4228.9,4228.8,4.62569]
[1754819260009,0.2683,4228.9,4228.8,4.62569]
[1754819260210,0.2683,4228.9,4228.8,4.68379]
[1754819262822,0.2683,4228.9,4228.8,1.47599]
[1754819263118,0.2683,4228.9,4228.8,4.68379]
[1754819264817,0.5224,4228.9,4228.8,4.68379]
[1754819265916,1.5376,4228.9,4228.8,4.62569]
[1754819266117,1.1448,4228.9,4228.8,4.62569]
[1754819266317,1.1448,4228.9,4228.8,4.68379]
[1754819267222,0.9686,4228.9,4228.8,4.68379]
[1754819268124,1.5376,4228.9,4228.8,3.68069]
[1754819268421,1.5376,4228.9,4228.8,4.26149]
[1754819268723,1.5376,4228.9,4228.8,4.62589]
[1754819270734,1.1073,4228.9,4228.8,4.62589]
[1754819271023,1.3614,4228.9,4228.8,4.62589]
[1754819271224,1.5376,4228.9,4228.8,4.62589]
[1754819272723,1.1073,4228.9,4228.8,4.62589]
[1754819273328,1.5376,4228.9,4228.8,4.62589]
[1754819274224,0.2683,4228.9,4228.8,4.68399]
[1754819274427,0.5224,4228.9,4228.8,4.68399]
[1754819274617,0.7049,4228.9,4228.8,4.68399]
[1754819275016,1.0977,4228.9,4228.8,4.62589]
[1754819275528,1.5376,4228.9,4228.8,4.62589]
[1754819277419,0.4508,4228.9,4228.8,4.68399]
[1754819277625,0.60230723,4230.0,4229.9,0.47277]
[1754819277626,2.14630723,4230.0,4229.9,0.47277]
[1754819277931,1.544,4230.0,4229.9,0.47277]
[1754819279230,1.544,4229.9,4229.8,0.47278]
[1754819280428,0.6565,4229.9,4229.8,0.47278]
[1754819280631,1.544,4230.3,4230.2,0.47274]
[1754819281933,0.6224,4230.3,4230.1,0.47274]
[1754819282232,1.544,4230.2,4230.1,0.47274]
[1754819283932,1.544,4230.2,4230.1,0.87334]
[1754819284529,1.544,4230.2,4230.1,1.05354]
[1754819284834,1.544,4230.2,4230.1,1.41794]
[1754819285134,1.544,4230.2,4230.1,4.62574]
[1754819285428,1.544,4230.2,4230.1,3.68054]
[1754819288434,1.544,4230.2,4230.1,0.47274]
[1754819289934,0.9106,4230.2,4229.5,3.2078]
[1754819290134,1.5541,4229.6,4229.5,3.68061]
[1754819292440,1.5541,4229.6,4229.5,3.87651]
[1754819293143,1.5541,4229.6,4229.5,3.2078]
[1754819294539,1.5541,4229.6,4229.5,3.4037]
[1754819294942,1.5541,4229.6,4229.5,3.2078]
[1754819298847,1.5541,4229.6,4229.5,3.607]
[1754819299350,1.5541,4229.6,4229.5,3.8848]
[1754819299847,1.5541,4229.6,4229.5,4.147]
[1754819300450,1.5541,4229.6,4229.5,3.4037]
[1754819301449,1.5541,4229.6,4229.5,3.2078]
[1754819302239,1.5541,4229.6,4229.5,3.4037]
[1754819302442,1.5541,4229.6,4229.5,3.5895]
[1754819302638,1.5541,4229.6,4229.5,4.147]
[1754819305651,1.5541,4229.6,4229.5,3.5895]
[1754819306450,1.5541,4229.6,4229.5,2.5088]
[1754819306648,0.6245,4229.1,4229.0,4.0385]
[1754819306856,1.5541,4229.1,4229.0,4.79057]
[1754819307051,1.5541,4229.5,4229.4,1.30353]
[1754819307254,1.5541,4229.5,4229.4,1.99103]
[1754819309255,0.9296,4229.4,4229.3,0.47283]
[1754819309555,1.5541,4229.4,4229.3,0.47283]
[1754819309856,0.6245,4229.4,4229.1,0.47286]
[1754819310051,1.5541,4229.2,4229.1,0.47286]
[1754819312054,1.5541,4229.2,4229.1,0.88116]
[1754819312566,1.5541,4229.2,4229.1,1.06056]
[1754819313059,1.5541,4229.2,4229.1,1.32276]
[1754819313255,1.5541,4229.2,4229.1,1.71186]
[1754819315756,1.5617,4229.2,4229.1,1.50856]
[1754819315957,1.5617,4229.2,4229.1,1.71276]
[1754819318261,1.5617,4229.2,4229.1,1.32276]
[1754819319258,1.5617,4229.2,4229.1,0.6705]
[1754819319462,1.5684,4229.1,4229.0,0.47287]
[1754819319662,1.5684,4229.1,4229.0,0.86167]
[1754819319864,1.5684,4229.1,4229.0,1.30357]
[1754819320162,1.5684,4229.1,4229.0,1.69047]
[1754819320761,1.5684,4229.1,4229.0,1.94807]
[1754819324770,0.9323,4228.8,4228.6,0.47292]
[1754819324972,0.4527,4228.4,4228.3,0.47295]
[1754819325160,0.8978,4228.4,4228.3,0.47295]
[1754819325469,0.8978,4228.2,4228.1,0.47297]
[1754819325767,1.5684,4228.2,4228.1,0.47297]
[1754819326160,0.6361,4228.2,4228.0,0.47298]
[1754819326360,1.5684,4228.1,4228.0,0.47298]
[1754819326757,1.3067,4228.1,4227.9,0.3888]
[1754819326962,1.3067,4227.9,4227.8,0.473]
[1754819327264,1.5684,4227.9,4227.8,0.473]
[1754819327571,1.5684,4227.7,4227.6,3.2078]
[1754819329564,1.5684,4227.7,4227.6,3.5966]
[1754819329765,1.5684,4227.7,4227.6,4.0385]
[1754819330068,1.5684,4228.3,4228.2,1.50796]
[1754819330263,0.6029399,4228.5,4228.4,1.0865]
[1754819330264,1.0398399,4228.5,4228.4,1.0865]
[1754819330573,3.2078,4228.6,4228.5,1.94823]
[1754819331074,3.736,4228.6,4228.5,1.94823]
[1754819331371,4.7762,4228.6,4228.5,1.94823]
[1754819331568,4.7762,4228.6,4228.5,1.30363]
[1754819331772,4.7762,4228.6,4228.5,0.47293]
[1754819332367,4.7762,4228.6,4228.5,1.30363]
[1754819332566,3.736,4228.6,4228.5,1.94823]
[1754819332766,4.0946,4228.6,4228.5,1.94823]
[1754819332961,3.2078,4228.6,4228.5,1.94823]
[1754819333162,0.7034,4228.9,4228.8,1.09749]
[1754819333366,0.7034,4228.9,4228.8,1.94819]
[1754819333766,1.5684,4228.9,4228.8,1.94819]
[1754819334269,1.1643,4228.9,4228.8,1.94819]
[1754819334467,0.8868,4228.9,4228.8,1.94819]
[1754819335471,1.1643,4228.9,4228.8,1.94819]
[1754819335667,1.5684,4228.9,4228.8,1.94819]
[1754819336174,1.1643,4228.9,4228.8,1.94819]
[1754819336873,1.1643,4229.4,4229.3,0.6246]
[1754819337175,1.5684,4229.4,4229.3,1.2177]
[1754819337762,1.5684,4229.4,4229.3,1.69054]
[1754819337967,0.7034,4229.5,4229.4,1.4753]
[1754819338473,4.7762,4229.7,4229.6,1.4753]
[1754819338667,5.3778471,4229.7,4229.6,1.4753]
[1754819338868,4.7762,4229.7,4229.6,1.4753]
[1754819341274,4.7762,4229.7,4229.6,1.2177]
[1754819344774,4.7762,4229.7,4229.6,1.4753]
[1754819345271,3.8112,4230.5,4230.4,1.13232]
[1754819345473,4.2081,4230.5,4230.4,1.69642]
[1754819345875,4.7304,4230.5,4230.4,1.96142]
[1754819347767,4.7304,4230.5,4230.4,1.69642]
[1754819348370,4.7304,4230.5,4230.4,1.31232]
[1754819349176,4.7304,4230.5,4230.4,1.96142]
[1754819349374,4.3335,4230.5,4230.4,1.96142]
[1754819349676,4.7304,4230.5,4230.4,1.96142]
[1754819350169,4.2988,4230.5,4230.4,1.96142]
[1754819350371,4.1602,4230.5,4230.4,1.96142]
[1754819351573,4.7304,4230.5,4230.4,1.96142]
[1754819352472,4.7304,4230.5,4230.4,1.69642]
[1754819354776,1.5226,4230.5,4230.4,1.69642]
[1754819354970,1.5226,4230.5,4230.4,1.96142]
[1754819356276,1.5226,4230.5,4230.4,1.69642]
[1754819357273,1.5226,4230.5,4230.4,0.47272]
[1754819357478,1.5226,4230.5,4230.4,1.51652]
[1754819357673,1.5226,4230.5,4230.4,1.69642]
[1754819357883,1.5226,4230.5,4230.4,1.96142]
[1754819358282,1.1257,4230.5,4230.4,1.96142]
[1754819358879,1.5226,4230.5,4230.4,1.96142]
[1754819363178,1.1257,4230.5,4230.4,1.69642]
[1754819363379,1.3493,4230.5,4230.4,1.49222]
[1754819363678,0.60003404,4230.8,4230.7,0.47268]
[1754819363987,2.12263404,4231.3,4231.2,1.0195]
[1754819364179,2.12263404,4231.3,4231.2,1.4887]
[1754819364381,2.12263404,4231.3,4231.2,1.2237]
[1754819364580,2.12263404,4231.3,4231.1,0.47263]
[1754819364776,1.5226,4231.2,4231.1,0.3874]
[1754819364974,1.5226,4231.2,4231.0,0.47265]
[1754819365190,1.5226,4231.1,4231.0,0.47265]
[1754819365678,1.5226,4231.1,4231.0,0.86005]
[1754819365884,1.5226,4231.1,4231.0,1.04005]
[1754819366285,1.5226,4231.1,4231.0,1.51645]
[1754819366686,1.5226,4231.1,4231.0,0.8396]
[1754819367481,1.5226,4231.1,4231.0,1.0438]
[1754819367685,0.60003404,4231.3,4231.2,1.4887]
[1754819367883,1.5226,4231.3,4231.2,1.4887]
[1754819369186,0.4266,4231.1,4231.0,3.95265]
[1754819369393,1.5226,4231.1,4231.0,4.90415]
[1754819369590,1.5226,4231.1,4231.0,5.16915]
[1754819370287,0.60144698,4231.6,4231.4,0.4726]
[1754819370492,0.4351,4231.9,4231.8,1.69626]
[1754819370789,1.5226,4231.9,4231.8,1.96126]
[1754819370987,1.5226,4231.9,4231.8,1.69626]
[1754819371185,1.5226,4231.9,4231.8,1.96126]
[1754819372991,0.8674,4232.7,4232.6,1.10457]
[1754819373184,1.5226,4232.7,4232.6,1.96117]
[1754819373784,1.5226,4232.7,4232.6,1.69617]
[1754819374086,1.87012898,4233.2,4232.6,1.69617]
[1754819374281,0.6034,4232.8,4232.7,0.8971]
[1754819374484,0.6034,4232.8,4232.7,1.5378]
[1754819376204,1.2485,4232.8,4232.7,1.5378]
[1754819376690,1.5143,4232.8,4232.7,1.5378]
[1754819378788,0.60062182,4233.2,4233.1,0.6295]
[1754819378995,1.5174,4233.3,4233.2,1.5779]
[1754819379396,0.6065,4233.1,4233.0,0.2726]
[1754819379597,0.5185,4232.4,4232.1,0.47252]
[1754819379798,1.5174,4232.3,4232.2,0.2726]
[1754819380491,1.5174,4232.1,4231.8,0.88785]
[1754819380696,1.5174,4231.9,4231.8,0.2726]
[1754819380891,0.6065,4231.7,4231.6,3.2078]
[1754819381091,1.5174,4231.5,4231.4,1.4509]
[1754819381292,1.5174,4231.5,4231.4,0.9783]
[1754819381498,1.2516,4231.0,4230.9,4.7857]
[1754819381799,0.60062182,4231.5,4231.2,0.6295]
[1754819381995,1.2516,4231.3,4231.2,0.6295]
[1754819382500,1.5174,4231.0,4230.9,0.2726]
[1754819382696,0.35,4231.0,4230.9,1.5779]
[1754819383599,0.7424,4231.2,4231.1,0.6295]
[1754819383787,1.2516,4231.2,4231.1,1.5779]
[1754819384999,0.818,4231.2,4231.1,1.5779]
[1754819385910,0.9989,4231.2,4231.1,1.5779]
[1754819386911,1.2516,4231.2,4231.1,1.5779]